Cogmind - Beta 14 @@@ ROGUE MODE // 2024.10.08 @ 03:51:58 Player: Kiwi Result: Destroyed by G-47 Trooper with Particle Gun Performance ------------- Evolutions (2) 1000 Regions Visited (4) 800 Robots Destroyed (29) 145 Value Destroyed (819) 819 Prototype IDs (0) 0 Alien Tech Used (0) 0 Bonus (0) 0 TOTAL SCORE: 2764 Bonus ------- None Cogmind --------- Core Integrity 0/550 Matter 300/300 Energy 89/100 System Corruption 2% Temperature Cool (21) Movement Core (400) Ox7 Location -8/Materials Parts ------- > --- POWER (1) -------- (None) > --- PROPULSION (3) --- (None) > --- UTILITY (4) ------ Large Storage Unit Signal Interpreter > --- WEAPON (3) ------- Beam Rifle > --- INVENTORY (15) --- Light Ion Engine Improved Heat Sink Medium Storage Unit High-capacity Storage Unit Medium Matter Pod (100) Structural Scanner Medium Armor Plating Mining Laser Peak State ------------ > --- POWER ------------ Light Nuclear Core > --- PROPULSION ------- Light Treads Improved Treads > --- UTILITY ---------- Large Storage Unit Sensor Array Signal Interpreter Medium Armor Plating > --- WEAPON ----------- EM Shotgun EM Shotgun Small Laser > --- INVENTORY -------- Light Ion Engine Light Ion Engine Light Nuclear Core Flight Unit Flight Unit Improved Heat Sink Medium Storage Unit High-capacity Storage Unit Medium Matter Pod Structural Scanner Medium Armor Plating Improved Light Armor Plating Mining Laser [Rating: 18] Favorites ----------- Power Light Ion Engine Engine Light Ion Engine Power Core Light Nuclear Core Propulsion Light Treads Treads Light Treads Wheel Wheel Flight Unit Flight Unit Utility Large Storage Unit Device Sensor Array Storage Large Storage Unit Processor Signal Interpreter Protection Medium Armor Plating Weapon Small Laser Energy Gun Small Laser Ballistic Gun Light Assault Rifle Launcher Grenade Launcher Impact Weapon Flail Build | -11 -10 -9 -9 -8 ------- Run | Yrd Mat Mat Min Mat Slots Evolved 4 | . . 2 . 2 Power . | . . . . . Propulsion 1 | . . 1 . . Utility 2 | . . 1 . 1 Weapon 1 | . . . . 1 Parts Attached 31 | 6 5 8 2 10 Power 4 | 1 . 1 1 1 Engine 3 | 1 . 1 . 1 Core 1 | . . . 1 . Reactor . | . . . . . Propulsion 8 | 2 . 4 . 2 Treads 3 | . . 3 . . Leg . | . . . . . Wheel 3 | 2 . 1 . . Hover . | . . . . . Flight 2 | . . . . 2 Utility 8 | 1 4 1 . 2 Device 2 | . 2 . . . Storage 3 | 1 2 . . . Processor 1 | . . 1 . . Hackware . | . . . . . Protection 2 | . . . . 2 Artifact . | . . . . . Weapon 11 | 2 1 2 1 5 Energy Gun 8 | 2 . 1 1 4 Energy Cannon . | . . . . . Ballistic Gun 1 | . 1 . . . Ballistic Cannon . | . . . . . Launcher 1 | . . 1 . . Special Weapon . | . . . . . Impact Weapon 1 | . . . . 1 Slashing Weapon . | . . . . . Piercing Weapon . | . . . . . Special Melee Weapon . | . . . . . Unidentified Prototypes . | . . . . . Corrupted Parts 1 | . . . . 1 System Corruption 2 | . . . . 2 Parts Lost 23 | . 1 5 4 13 Power 4 | . . 1 1 2 Propulsion 8 | . . 3 1 4 Utility 3 | . . . . 3 Weapon 8 | . 1 1 2 4 Highest Loss Streak 8 | . 1 5 2 8 To Critical Strikes . | . . . . . Average Slot Usage (%) 87 | . 98 96 81 70 Engine 6 | . 14 9 2 1 Core 3 | . . . 6 6 Treads 16 | . . 24 25 12 Wheel 8 | . 28 6 . . Device 10 | . 13 11 11 6 Storage 11 | . 14 11 11 9 Processor 8 | . . 11 11 9 Protection 1 | . . . . 7 Energy Gun 13 | . 17 10 10 16 Ballistic Gun 4 | . 10 6 . . Launcher 2 | . . 4 3 . Peak Build Rating 18 | 6 8 12 12 18 Average Rating 10 | 4 7 10 11 13 On Entrance 7 | . 6 8 11 12 Naked Turns . | . . . . . Heaviest Build 40 | 11 27 29 29 40 Greatest Support 63 | 20 20 63 63 43 Greatest Overweight (x) 8 | 1 1 7 . 8 Average Overweight (x) . | . . . . . Largest Inventory Capacity 15 | 8 15 15 15 15 Average Capacity 14 | 7 14 15 15 15 Most Carried 15 | 6 13 15 14 15 Average Carried 12 | 4 10 13 13 11 Final Capacity 15 | 8 15 15 15 15 Final Carried 14 | 6 13 14 14 8 Class Distribution -------------------- 89% | Mutant 10% | Skirmisher Dominant Class ---------------- Mutant | -10/Materials Mutant | -9/Materials Mutant | -9/Mines Skirmisher | -8/Materials Resources | -11 -10 -9 -9 -8 ----------- Run | Yrd Mat Mat Min Mat Matter Collected 661 | 238 176 137 30 80 Remotely . | . . . . . Salvage Created 942 | . 141 360 178 263 Parts 51 | . 8 21 9 13 Haulers Intercepted 1 | . . 1 . . Recyclers Shooed . | . . . . . Parts Field Recycled . | . . . . . Retrieved Matter . | . . . . . Parts Self-Destructed . | . . . . . Prevented . | . . . . . Kills | -11 -10 -9 -9 -8 ------- Run | Yrd Mat Mat Min Mat Combat Hostiles Destroyed 24 | . 5 11 4 4 Guns 15 | . 5 6 2 2 AOE 8 | . . 5 2 1 Classes Destroyed 7 | . 2 3 1 1 Builder 1 | . . . . 1 Tunneler 1 | . . . 1 . Hauler 1 | . . 1 . . Watcher 2 | . . 1 . 1 Swarmer 7 | . 3 4 . . Grunt 15 | . 2 6 4 3 Sentry 2 | . . 1 . 1 Best Kill Streak 4 | . 3 4 2 3 Combat Bots Only 4 | . 3 4 2 2 Max Kills in Single Turn 2 | . 1 2 1 2 Gunslinging . | . . . . . Exploded 2 | . . 2 1 1 Melee . | . . . . . Uniques/NPCs Destroyed . | . . . . . Combat | -11 -10 -9 -9 -8 -------- Run | Yrd Mat Mat Min Mat Hostile Shots Fired 306 | . 35 74 53 144 Missed 88 | . 9 15 20 44 Damage Taken 2975 | . 254 693 373 1655 Core 812 | . 50 142 57 563 Absorbed by Shields . | . . . . . Regen/Repaired (Parts) 39 | . . . . 39 Core Remaining (%) 76 | 100 80 . 50 . Volleys Fired 100 | . 22 23 27 28 Largest 3 | . 2 2 2 3 Hottest 130 | . 80 80 80 130 Shots Fired 148 | . 38 40 28 42 Gun 138 | . 38 33 25 42 Cannon . | . . . . . Launcher 10 | . . 7 3 . Special . | . . . . . Kinetic 21 | . 9 12 . . Thermal 87 | . 22 21 25 19 Explosive 10 | . . 7 3 . Electromagnetic 30 | . 7 . . 23 Robot Hit Streak 10 | . 10 8 7 7 Robot Miss Streak 4 | . 3 4 3 3 Penetration Max . | . . . . . Secondary Targets 2 | . 1 1 . . Max Gunslinging Chain 1 | . 1 1 . . Shots Hit Robots 93 | . 24 23 13 33 Core Hits 61 | . 10 21 10 20 Critical Kills 1 | . . 1 . . Critical Parts Destroyed . | . . . . . Critical Strikes 3 | . . 2 . 1 Burn 2 | . . 1 . 1 Destroy 1 | . . 1 . . Melee Attacks . | . . . . . Impact . | . . . . . Slashing . | . . . . . Piercing . | . . . . . Sneak Attacks . | . . . . . Combat Hostiles . | . . . . . Follow-up Attacks . | . . . . . Damage Inflicted 1858 | . 278 648 233 699 Guns 1122 | . 278 194 130 520 Cannons . | . . . . . Explosions 736 | . . 454 103 179 Melee . | . . . . . Ramming . | . . . . . Kinetic 118 | . 39 79 . . Thermal 794 | . 175 115 130 374 Explosive 557 | . . 454 103 . Electromagnetic 389 | . 64 . . 325 Impact . | . . . . . Slashing . | . . . . . Piercing . | . . . . . Highest Corruption 2 | . . . . 2 Average Corruption 2 | . . . . 2 Corruption Purged . | . . . . . Corruption Blocked . | . . . . . Overload Shots . | . . . . . Overflow Damage 15 | . . . . 15 Projectiles . | . . . . . Explosions 15 | . . . . 15 Melee . | . . . . . Knockbacks . | . . . . . Impact . | . . . . . Kinetic . | . . . . . Secondary . | . . . . . Self-Inflicted Damage 93 | . . 15 . 78 Shots 3 | . . 1 . 2 Rammed 1 | . . . 1 . Targets Rammed 1 | . . . 1 . Kicked . | . . . . . Crushed . | . . . . . Highest Temperature 396 | . 198 111 18 396 Average Temperature 88 | . 86 39 3 130 Received Heat Transfer 1554 | . 96 306 162 990 Effects 3 | . . . . 3 Interference 3 | . . . . 3 Siege Activations . | . . . . . Robots Corrupted 1 | . . . . 1 Combat Hostiles 1 | . . . . 1 Parts Fried 2 | . . . . 2 Impact Corruptions . | . . . . . Robots Melted . | . . . . . Combat Hostiles . | . . . . . Parts Melted . | . . . . . Heat Transferred 1730 | . 400 372 300 658 Parts Sabotaged . | . . . . . Parts Stolen . | . . . . . Parts Stripped . | . . . . . Power Chain Reactions 2 | . . . . 2 Alert | -11 -10 -9 -9 -8 ------- Run | Yrd Mat Mat Min Mat Peak Influence 376 | . 130 376 204 80 Initial 74 | . . 54 74 1 Average 114 | . 90 204 125 18 Maximum Alert Level 1 | . . 1 1 . Low Security (%) 88 | 100 100 70 87 100 Level 1 11 | . . 29 12 . Level 2 . | . . . . . Level 3 . | . . . . . Level 4 . | . . . . . Level 5 . | . . . . . High Security . | . . . . . Max Security . | . . . . . Squads Dispatched 2 | . . 1 . 1 Investigation 1 | . . . . 1 Extermination . | . . . . . Reinforcement 1 | . . 1 . . Assault . | . . . . . Garrison . | . . . . . Intercept . | . . . . . Searches Triggered . | . . . . . Construction Impeded . | . . . . . Haulers Reinforced . | . . . . . Active Scanning Responses . | . . . . . Cargo Convoy Interrupts . | . . . . . Stealth | -11 -10 -9 -9 -8 --------- Run | Yrd Mat Mat Min Mat Distress Signals 1 | . . . . 1 Communications Jammed . | . . . . . Distress Signals . | . . . . . Times Spotted 40 | . 7 18 7 8 Peak Tracking Total 6 | . 4 6 4 5 Tactical Retreats 3 | . 1 1 1 . Traps | -11 -10 -9 -9 -8 ------- Run | Yrd Mat Mat Min Mat Traps Triggered . | . . . . . Indirectly . | . . . . . Trap Hack Attempts . | . . . . . Triggered . | . . . . . Disarmed 6 | . 6 . . . Reprogrammed . | . . . . . Reused . | . . . . . Traps Extracted . | . . . . . Installed . | . . . . . Triggered . | . . . . . Machines | -11 -10 -9 -9 -8 ---------- Run | Yrd Mat Mat Min Mat Machines Disabled . | . . . . . Max in Single Turn . | . . . . . Machines Repaired . | . . . . . Machines Dismantled . | . . . . . Machines Sabotaged . | . . . . . Overloaded Fab Kills . | . . . . . Hacking | -11 -10 -9 -9 -8 --------- Run | Yrd Mat Mat Min Mat Machines Accessed 6 | . 1 2 . 3 Terminals 4 | . 1 2 . 1 Fabricators . | . . . . . Repair Stations 1 | . . . . 1 Recycling Units . | . . . . . Scanalyzers 1 | . . . . 1 Garrison Access . | . . . . . Total Hacks 19 | . 4 4 . 11 Successful 14 | . 4 2 . 8 Failed 5 | . . 2 . 3 Catastrophic 1 | . . 1 . . Database Lockouts . | . . . . . Manual . | . . . . . Terminals 12 | . 4 4 . 4 Fabricators . | . . . . . Repair Stations 3 | . . . . 3 Recycling Units . | . . . . . Scanalyzers 4 | . . . . 4 Garrison Access . | . . . . . Terminal Hacks 8 | . 4 2 . 2 Record 1 | . . 1 . . Branch Access Points 1 | . 1 . . . Alert Level 2 | . 1 . . 1 Disarm Traps 1 | . 1 . . . Dispatch Records 1 | . . 1 . . Security Status 1 | . . . . 1 Zone Layout 1 | . 1 . . . Fabricator Hacks . | . . . . . Repair Station Hacks 3 | . . . . 3 Scan Component 2 | . . . . 2 Repair 1 | . . . . 1 Recycling Unit Hacks . | . . . . . Scanalyzer 3 | . . . . 3 Insert Component 1 | . . . . 1 Analyze 2 | . . . . 2 Garrison Access Hacks . | . . . . . Unauthorized Hacks . | . . . . . Terminals . | . . . . . Fabricators . | . . . . . Repair Stations . | . . . . . Recycling Units . | . . . . . Scanalyzers . | . . . . . Garrison Access . | . . . . . Data Cores Recovered . | . . . . . Used . | . . . . . Hacking Detections 6 | . 1 2 . 3 Full Trace Events 4 | . . 1 . 3 Feedback Events . | . . . . . Feedback Blocked . | . . . . . Robot Schematics Acquired . | . . . . . Robots Built . | . . . . . Authchips . | . . . . . Time . | . . . . . Total Robot Build Rating . | . . . . . Part Schematics Acquired 1 | . . . . 1 Parts Built . | . . . . . Authchips . | . . . . . Time . | . . . . . Total Part Build Rating . | . . . . . Parts Repaired 1 | . . . . 1 Time 38 | . . . . 38 Parts Recycled . | . . . . . Recycled Matter . | . . . . . Retrieved Matter . | . . . . . Retrieved Components . | . . . . . Parts Scanalyzed 1 | . . . . 1 Part Schematics Acquired 1 | . . . . 1 Parts Damaged . | . . . . . Bothacking | -11 -10 -9 -9 -8 ------------ Run | Yrd Mat Mat Min Mat Used RIF Installer . | . . . . . Robots Hacked . | . . . . . Non-combat . | . . . . . Combat . | . . . . . Robot Hacks Applied . | . . . . . Relay Couplers Released . | . . . . . Fabnet Peak Effective % . | . . . . . Robots Rewired . | . . . . . Allies Hacked . | . . . . . Hacks Repelled . | . . . . . Allies | -11 -10 -9 -9 -8 -------- Run | Yrd Mat Mat Min Mat Total Allies . | . . . . . Largest Group . | . . . . . Highest-Rated Group . | . . . . . Highest-Rated Ally . | . . . . . Total Orders . | . . . . . Ally Attacks . | . . . . . Total Damage . | . . . . . Kills . | . . . . . Allies Corrupted . | . . . . . Allies Melted . | . . . . . Intel | -11 -10 -9 -9 -8 ------- Run | Yrd Mat Mat Min Mat Robot Analysis Total . | . . . . . Derelict Logs Recovered . | . . . . . Drone Launches . | . . . . . Drone Recoveries . | . . . . . Exploration | -11 -10 -9 -9 -8 ------------- Run | Yrd Mat Mat Min Mat Turns Passed 1612 | 67 353 445 442 305 Spaces Moved 992 | 71 303 267 239 112 Core 36 | 24 . 1 . 11 Treads 517 | . . 182 239 96 Legs . | . . . . . Wheels 434 | 47 303 84 . . Hover . | . . . . . Flight 5 | . . . . 5 Fastest Speed 50 | 50 80 80 160 160 Average Speed 130 | 71 92 136 160 196 Slowest Speed 520 | 100 95 400 160 520 Overloaded Moves . | . . . . . Propulsion Burnouts . | . . . . . Robots Hopped . | . . . . . Cave-ins Triggered . | . . . . . Exploration Rate (%) 23 | 4 38 18 48 10 Regions Visited 4 Branch Regions 1 Pre-discovered Areas . | . . . . . Known Exits Taken 2 | . . 1 1 . Unknown Exits Taken 2 | 1 1 . . . Scrap Searched . | . . . . . Spaces Dug . | . . . . . Terrain Destroyed 73 | . . 40 24 9 Melee . | . . . . . Projectile . | . . . . . AOE 73 | . . 40 24 9 Terrain Rammed . | . . . . . Walls Destroyed . | . . . . . Machines Disabled . | . . . . . Actions | -11 -10 -9 -9 -8 --------- Run | Yrd Mat Mat Min Mat Total 1166 | 86 339 312 270 159 Wait 4 | . . 1 . 3 Move 988 | 70 302 266 238 112 Hop . | . . . . . Pick Up 36 | 10 8 11 2 5 Fast Attach 3 | 2 1 . . . Attach 26 | 4 2 8 2 10 Detach 1 | . 1 . . . Swap 2 | . 2 . . . Drop 5 | . 1 3 . 1 Fire 100 | . 22 23 27 28 Melee . | . . . . . Ram . | . . . . . Kick . | . . . . . Crush 1 | . . . 1 . Escape Stasis . | . . . . . Rewire . | . . . . . Trap . | . . . . . Miscellaneous . | . . . . . Route ------- -11/Scrapyard -10/Materials (discovered 3 exits: *Mat / *Min x2) -9/Materials (discovered 2 exits: *Min / *Sto) -9/Mines (discovered 2 exits: *Mat x2) -8/Materials History --------- Turn | Location | Event 13 | -11/Scrapyard | Discovered new exit (range 14) 68 | -11/Scrapyard | Entered Materials 99 | -10/Materials | Discovered new exit (range 15) 238 | -10/Materials | Discovered new exit (range 17) 238 | -10/Materials | Identified exit to Mines 310 | -10/Materials | Build established: Mutant 421 | -10/Materials | Entered another Materials area 421 | -9/Materials | Evolved 2 slots: Propulsion x1, Utility x1 469 | -9/Materials | Discovered new exit (range 10) 556 | -9/Materials | Lost 5 parts (1p3n1w) 710 | -9/Materials | Discovered new exit (range 16) 714 | -9/Materials | Identified exit to Storage 864 | -9/Materials | Identified exit to Mines 866 | -9/Materials | Entered Mines 889 | -9/Mines | Discovered new exit (range 6) 919 | -9/Mines | Found a hidden stash of uninstalled traps 1080 | -9/Mines | Discovered new exit (range 10) 1095 | -9/Mines | Identified exit to Materials 1308 | -9/Mines | Entered Materials 1308 | -8/Materials | Evolved 2 slots: Utility x1, Weapon x1 1413 | -8/Materials | Repaired Lgt. Nuclear Core? 1545 | -8/Materials | Core integrity fell below 50% 1554 | -8/Materials | Lost 8 parts (1p2n2u3w) 1588 | -8/Materials | Core integrity fell below 20% 1613 | -8/Materials | Destroyed by G-47 Trooper with Particle Gun Last Messages --------------- 01560_ Critical hit (Burn: +37). 01561_ R-06 Scavenger collects Welding Torch. 01562_ Pulse Rifle destroyed. 01564_ R-06 Scavenger collects Wheel. 01581_ Flight Unit destroyed. 01589_ Lgt. Ion Engine destroyed. 01590_ U-05 Engineer builds a Wall. 01595_ Critical hit (Burn: +37). 01595_ U-05 Engineer builds a Wall. 01596_ Acquired 30 matter. 01599_ U-05 Engineer lays Concrete. 01601_ U-05 Engineer builds a Door. 01603_ Imp. Light Armor Plating destroyed. 01604_ Acquired Corrupted Beam Rifle. 01605_ Integrated Corrupted Beam Rifle (+2). 01606_ Acquired 10 matter. 01607_ U-05 Engineer lays Concrete. 01608_ U-05 Engineer builds a Wall. 01610_ G-47 Trooper suffers critical hit (Burn). 01612_ U-05 Engineer lays Concrete. Map ----- +----------------------------------------------------+ | | | | | | | | | | | | | | | | | | | | | | | | | | | | | | | ?????????????????????????????????????????????????? | | ?????????????????????????????????????????????????? | | ########???????????##########????????????????????? | | #???????????# #????????????????????? | | """ #???????????# #????????????????????? | | "R #???????????# ##???????????????????? | | """ #???????????# ;#???????????????????? | | #???????????# ;#???????????????????? | | """ #???????????# % ;#???????????????????? | | """ #???????????# g ;#???????????????????? | | """ #???????????# =g@ ;#???????????????????? | | #????###????# % !=!##???????????????????? | | ###+#########T########;#u############????????????? | | %=%! ?????????? | | * ! ?????????? | | !%= ?????????? | | ###/####### ###+####### ###########??????????? | | #?# # % #?? #????????????????????? | | #?# # %= #?? #????????????????????? | | #?# # #?? #????????????????????? | | #?# # #?? #????????????????????? | | / #?# + #?? #????????????????????? | | #?# # #?? #????????????????????? | | #?##### #?? ????????????????????? | | #?????# #??? ????????????????????? | | #########?????# #??? /???????????????????? | | ??????????????# #??? #???????????????????? | | ??????????????# #??? #???????????????????? | | ??????????????#########?????#????????????????????? | | ?????????????????????????????????????????????????? | | ?????????????????????????????????????????????????? | | ?????????????????????????????????????????????????? | | ?????????????????????????????????????????????????? | | ?????????????????????????????????????????????????? | | ?????????????????????????????????????????????????? | +----------------------------------------------------+ Best States ------------- Heat Dissipation 31 Energy Generation 14 Energy Capacity 160 Matter Stores 300 Matter Capacity 300 Sight Range 16 Robot Scan Range 14 Terrain Scan Density 10 Armor Coverage 225 Evasion (%) 50 Recoil Reduction 3 Item Schematics ----------------- Lgt. Nuclear Core | -8/Materials | Scanalyzed Robot Schematics ------------------ None Fabricated ------------ Nothing Alien Tech Used ----------------- None Achievements -------------- Loot Pinata Part-time Mechanic Power Corrupts Challenges ------------ None Game ------ Seed CorruptionFlightSword Manual? 0 Play Time 00:23:17 Cumulative 4.5 hours Start 2024.10.08 @ 03:30:53 End 2024.10.08 @ 03:51:58 Sessions 1 Manual Loads 0 Difficulty Rogue Special Mode None Game No. 8 Rogue 8 Adventurer 0 Explorer 0 Win Type - Total 0 Types 0/0/0/0/0/0/0/0/0 Lore% 2 Gallery% 7 Achievement% 6 Wizard Run 0 Options --------- Layout 1 ASCII 0 Keyboard 0 Movement Mouse Keybinds 0 Fullscreen 1 Font 24/Smallcaps Map View 50x35 Zoom Use 0% Tactical HUD 1 Map Filters NONE Filters NONE Steam 1 RUN: bcc580e9-ec03-48a0-925a-cda24c0255e9